bitfinex/quotes_BTCUSD_20250730
["timestamp","ask_amount","ask_price","bid_price","bid_amount"]
[1753839548038,0.01504847,118030.0,118020.0,0.33712695]
[1753839548241,0.01504847,118030.0,118020.0,0.64769782]
[1753839548438,0.01504847,118030.0,118020.0,0.33712695]
[1753839550292,0.31057087,118050.0,118040.0,0.0138796]
[1753839550499,0.31093933,118050.0,118040.0,0.2285969]
[1753839550705,0.33491829,118050.0,118040.0,0.2285969]
[1753839551566,0.3433887,118050.0,118040.0,0.2285969]
[1753839551700,0.3435887,118050.0,118040.0,0.2285969]
[1753839552106,0.3435887,118050.0,118040.0,0.2295969]
[1753839552828,0.33511829,118050.0,118040.0,0.2295969]
[1753839553045,0.02434742,118050.0,118040.0,0.2446969]
[1753839553246,0.33491829,118050.0,118040.0,0.2608969]
[1753839553449,0.33491829,118050.0,118040.0,0.1306569]
[1753839553681,0.33491829,118050.0,118040.0,0.2608569]
[1753839554037,0.33491829,118050.0,118040.0,0.2854769]
[1753839554235,0.02434742,118050.0,118040.0,0.2854769]
[1753839554517,0.33491829,118050.0,118040.0,0.2854769]
[1753839555333,0.68338863,118050.0,118040.0,0.2855569]
[1753839555533,0.7003298,118050.0,118040.0,0.0993569]
[1753839555671,0.96289838,118050.0,118040.0,0.1451196]
[1753839555873,0.87842108,118050.0,118040.0,0.1451196]
[1753839556074,0.70900135,118050.0,118040.0,0.1451196]
[1753839556296,0.70053037,118050.0,118040.0,0.1451196]
[1753839556486,0.70053037,118050.0,118040.0,0.6451196]
[1753839557704,0.3730179,118050.0,118040.0,0.6451196]
[1753839557915,0.38128852,118050.0,118040.0,0.6451196]
[1753839558119,0.69185939,118050.0,118040.0,0.6451196]
[1753839558299,0.38128845,118050.0,118040.0,0.6451196]
[1753839558513,0.69185932,118050.0,118040.0,0.6451196]
[1753839558767,0.67491829,118050.0,118040.0,0.6451196]
[1753839558983,0.67491829,118050.0,118040.0,0.7042996]
[1753839561397,0.6833887,118050.0,118040.0,0.7042996]
[1753839561618,0.6833887,118050.0,118040.0,0.7010896]
[1753839562653,0.70033002,118050.0,118040.0,0.7010896]
[1753839562874,0.70032994,118050.0,118040.0,0.7010896]
[1753839565535,0.69185925,118050.0,118040.0,0.7010896]
[1753839566777,0.70032994,118050.0,118040.0,0.7042996]
[1753839566992,0.69185925,118050.0,118040.0,0.7042996]
[1753839567148,0.70032994,118050.0,118040.0,0.7042996]
[1753839567548,0.70880078,118050.0,118040.0,0.6450796]
[1753839568169,0.70880071,118050.0,118040.0,0.6450796]
[1753839568376,0.70032994,118050.0,118040.0,0.6691496]
[1753839569830,0.70880078,118050.0,118040.0,0.6681496]
[1753839570201,0.70032994,118050.0,118040.0,0.6681496]
[1753839570421,0.69285925,118050.0,118040.0,0.6842496]
[1753839570656,0.69285925,118050.0,118040.0,0.7007496]
[1753839570806,0.70132994,118050.0,118040.0,0.7039596]
[1753839571790,0.70980078,118050.0,118040.0,0.7039596]
[1753839572233,0.89850899,118050.0,118040.0,0.5138796]
[1753839572439,1.17285042,118050.0,118040.0,0.6302]
[1753839572650,0.86247955,118050.0,118040.0,0.6302]
[1753839573117,0.86227955,118050.0,118040.0,0.6302]
[1753839573320,0.85380886,118050.0,118040.0,0.6302]
[1753839577641,0.85380886,118050.0,118040.0,0.63024]
[1753839578774,0.85380886,118050.0,118040.0,0.65431]
[1753839579193,0.85380886,118050.0,118040.0,0.63024]
[1753839580233,0.85380886,118050.0,118040.0,0.65431]
[1753839582876,0.85380886,118050.0,118040.0,0.63024]
[1753839583140,0.85380886,118050.0,118040.0,0.5]
[1753839583352,5.30952899,118050.0,118040.0,0.5]
[1753839583563,5.41838632,118050.0,118040.0,0.5]
[1753839584190,5.41818632,118050.0,118040.0,0.5]
[1753839584445,5.10761545,118050.0,118040.0,0.5]
[1753839584665,5.41818632,118050.0,118040.0,0.5]
[1753839585090,5.10761545,118050.0,118040.0,0.5]
[1753839585289,5.41818632,118050.0,118040.0,0.5]
[1753839585498,5.75723632,118050.0,118040.0,0.5]
[1753839586527,5.75703632,118050.0,118040.0,0.5]
[1753839586730,5.44646545,118050.0,118040.0,0.5]
[1753839587364,5.75723632,118050.0,118040.0,0.5]
[1753839587740,5.75723632,118050.0,118040.0,0.49990004]
[1753839589209,5.75703632,118050.0,118040.0,0.49990004]
[1753839589422,5.43256686,118050.0,118040.0,0.49990004]
[1753839590889,5.74313773,118050.0,118040.0,0.49990004]
[1753839591324,5.86664672,118050.0,118040.0,0.49990004]
[1753839591754,5.84526405,118050.0,118040.0,0.49990004]
[1753839592397,5.84506405,118050.0,118040.0,0.49990004]
[1753839592621,5.61897048,118050.0,118040.0,0.49990004]
[1753839593743,5.61897048,118050.0,118040.0,0.52445004]
[1753839593976,6.06267048,118050.0,118040.0,0.52445004]
[1753839594205,6.06267048,118050.0,118040.0,0.49990004]
[1753839594881,6.37324135,118050.0,118040.0,0.49990004]
[1753839596879,6.37344135,118050.0,118040.0,0.49990004]
[1753839597822,6.37244135,118050.0,118040.0,0.49990004]
[1753839598328,6.37344135,118050.0,118040.0,0.49990004]
[1753839599255,6.37324135,118050.0,118040.0,0.49990004]
[1753839600566,6.39174194,118050.0,118040.0,0.49990004]
[1753839600926,6.39154194,118050.0,118040.0,0.49990004]
[1753839603044,6.44248194,118050.0,118040.0,0.49990004]
[1753839603502,5.8213402,118050.0,118040.0,0.49990004]
[1753839603720,6.44248194,118050.0,118040.0,0.50292004]
[1753839603923,6.44248194,118050.0,118040.0,0.49990004]
[1753839604938,2.33281394,118050.0,118040.0,0.49990004]
[1753839605180,6.44248194,118050.0,118040.0,0.49990004]
[1753839608306,6.44248194,118050.0,118040.0,0.52445004]
[1753839609713,6.44248194,118050.0,118040.0,0.55917004]
[1753839611558,6.13191107,118050.0,118040.0,0.55917004]
[1753839612890,6.44248194,118050.0,118040.0,0.55917004]
[1753839613108,6.44248194,118050.0,118040.0,0.56113004]
[1753839613357,6.13191107,118050.0,118040.0,0.56113004]
[1753839613578,5.99617377,118050.0,118040.0,0.56113004]
[1753839613847,5.8356029,118050.0,118040.0,0.56113004]
[1753839614077,5.88441748,118050.0,118040.0,0.56113004]
[1753839614293,5.72346873,118050.0,118040.0,0.56113004]
[1753839615244,5.89288846,118050.0,118040.0,0.56113004]
[1753839615934,5.41289714,118050.0,118040.0,0.56113004]
[1753839616138,5.71499747,118050.0,118040.0,0.56113004]
[1753839616350,5.72346794,118050.0,118040.0,0.56113004]
[1753839616779,5.73193878,118050.0,118040.0,0.56113004]
[1753839617193,5.72346794,118050.0,118040.0,0.56113004]
[1753839617391,5.73293878,118050.0,118040.0,0.56113004]
[1753839617618,5.72446794,118050.0,118040.0,0.56113004]
[1753839617812,5.72346794,118050.0,118040.0,0.56113004]
[1753839618017,5.73393871,118050.0,118040.0,0.56113004]
[1753839618225,5.41489715,118050.0,118040.0,0.56113004]
[1753839618431,5.72546794,118050.0,118040.0,0.56113004]
[1753839618849,5.72546787,118050.0,118040.0,0.56113004]
[1753839619092,5.70005629,118050.0,118040.0,0.57500964]
[1753839619290,5.7085267,118050.0,118040.0,0.57500964]
[1753839619898,5.7085267,118050.0,118040.0,0.70520964]
[1753839620926,5.25635629,118050.0,118040.0,0.70520964]
[1753839621537,5.26482663,118050.0,118040.0,0.70520964]
[1753839621745,5.25635629,118050.0,118040.0,0.70520964]
[1753839622372,5.25635629,118050.0,118040.0,0.69133004]
[1753839622588,5.2648267,118050.0,118040.0,0.69133004]
[1753839622810,1.16362918,118050.0,118040.0,0.70520964]
[1753839623021,1.1551587,118050.0,118040.0,0.70520964]
[1753839623233,1.15515863,118050.0,118040.0,0.70520964]
[1753839623449,1.14668829,118050.0,118040.0,0.70520964]
[1753839623672,1.14668829,118050.0,118040.0,0.69133004]
[1753839623881,1.14668829,118050.0,118040.0,0.70520964]
[1753839624275,1.1551587,118050.0,118040.0,0.70520964]
[1753839624692,1.16362925,118050.0,118040.0,0.70520964]
[1753839625539,1.17209987,118050.0,118040.0,0.70520964]
[1753839625754,1.18057056,118050.0,118040.0,0.70520964]
[1753839625970,1.18057056,118050.0,118040.0,0.69133004]
[1753839626184,1.18057056,118050.0,118040.0,0.70520964]
[1753839626694,1.18057056,118050.0,118040.0,0.69133004]
[1753839626918,1.34999122,118050.0,118040.0,0.70520964]
[1753839627137,1.33336991,118050.0,118040.0,0.70520964]
[1753839627336,1.16362946,118050.0,118040.0,0.70520964]
[1753839627547,1.16362939,118050.0,118040.0,0.70520964]
[1753839627793,1.17210016,118050.0,118040.0,0.70520964]
[1753839628004,1.17210008,118050.0,118040.0,0.70520964]
[1753839628400,1.18057092,118050.0,118040.0,0.70520964]
[1753839628552,1.17210008,118050.0,118040.0,0.70520964]
[1753839628770,1.18057092,118050.0,118040.0,0.70520964]
[1753839629193,1.1890419,118050.0,118040.0,0.70520964]
[1753839629369,1.18057135,118050.0,118040.0,0.70520964]
[1753839630203,1.18904233,118050.0,118040.0,0.70520964]
[1753839631608,0.87000048,118050.0,118040.0,0.70520964]
[1753839631829,1.17210044,118050.0,118040.0,0.70520964]
[1753839632037,1.1636296,118050.0,118040.0,0.70520964]
[1753839632250,1.17210044,118050.0,118040.0,0.69133004]
[1753839632430,1.17210044,118050.0,118040.0,0.70520964]
[1753839632625,1.1636296,118050.0,118040.0,0.70520964]
[1753839633482,1.17210044,118050.0,118040.0,0.70520964]
[1753839633686,1.1636296,118050.0,118040.0,0.70520964]
[1753839634101,1.17210037,118050.0,118040.0,0.70520964]
[1753839634359,1.16362932,118050.0,118040.0,0.70520964]
[1753839634569,0.85305845,118050.0,118040.0,0.70520964]
[1753839634785,1.17210001,118050.0,118040.0,0.70520964]
[1753839634994,1.18057085,118050.0,118040.0,0.70520964]
[1753839636043,1.17210001,118050.0,118040.0,0.70520964]
[1753839637069,1.16362932,118050.0,118040.0,0.70520964]
[1753839637279,1.17210001,118050.0,118040.0,0.70520964]
[1753839637940,1.18057085,118050.0,118040.0,0.70520964]
[1753839638143,1.17210001,118050.0,118040.0,0.70520964]
[1753839638376,1.18057078,118050.0,118040.0,0.70520964]
[1753839638994,1.09451403,118050.0,118040.0,0.70520964]
[1753839639201,1.10298487,118050.0,118040.0,0.70520964]
[1753839639843,1.1029853,118050.0,118040.0,0.70520964]
[1753839641280,1.27272503,118050.0,118040.0,0.70520964]
[1753839641539,1.48876868,118050.0,118040.0,0.70520964]
[1753839641737,1.48876868,118050.0,118040.0,0.69133004]
[1753839641948,1.48876868,118050.0,118040.0,0.70520964]
[1753839644583,1.48029784,118050.0,118040.0,0.70520964]
[1753839645035,1.48029784,118050.0,118040.0,0.69133004]
[1753839645258,1.48029784,118050.0,118040.0,0.70520964]
[1753839645741,1.24731295,118050.0,118040.0,0.70520964]
[1753839646774,1.24699295,118050.0,118040.0,0.70520964]
[1753839648163,1.24699295,118050.0,118040.0,0.69133004]
[1753839648409,1.24699295,118050.0,118040.0,0.70520964]
[1753839648837,1.24699295,118050.0,118040.0,0.69133004]
[1753839649068,1.24699295,118050.0,118040.0,0.70520964]
[1753839649303,1.25546364,118050.0,118040.0,0.70520964]
[1753839649753,1.08604391,118050.0,118040.0,0.70520964]
[1753839649982,1.09451489,118050.0,118040.0,0.70520964]
[1753839650218,1.09451432,118050.0,118040.0,0.70520964]
[1753839650440,0.70587742,118050.0,118040.0,0.77580734]
[1753839650687,1.06902231,118050.0,118040.0,0.78968694]
[1753839651111,0.93886231,118050.0,118040.0,0.78968694]
[1753839651756,0.70587742,118050.0,118040.0,0.78968694]
[1753839651992,0.93886231,118050.0,118040.0,0.78968694]
[1753839652628,0.70587742,118050.0,118040.0,0.78968694]
[1753839655294,0.70587742,118050.0,118040.0,0.83458699]
[1753839656555,0.70287742,118050.0,118040.0,0.83458699]
[1753839657413,0.70387742,118050.0,118040.0,0.83458699]
[1753839657628,0.70387742,118050.0,118040.0,1.14518838]
[1753839657842,0.70387742,118050.0,118040.0,0.83458699]
[1753839658275,0.70287742,118050.0,118040.0,0.83458699]
[1753839659633,0.70287742,118050.0,118040.0,0.83558699]
[1753839660284,0.33889846,118050.0,118040.0,1.14618838]
[1753839661869,0.33889846,118050.0,118040.0,0.83558699]
[1753839662523,0.33889846,118050.0,118040.0,1.14618838]
[1753839662950,0.33889846,118050.0,118040.0,0.83558699]
[1753839664487,0.37409574,118050.0,118040.0,0.83558699]
[1753839671275,0.37409574,118050.0,118040.0,1.14618838]
[1753839671507,0.37409574,118050.0,118040.0,0.83558699]
[1753839679882,0.37409574,118050.0,118040.0,1.14618838]
[1753839680507,0.37409574,118050.0,118040.0,0.83558699]
[1753839680937,0.37409574,118050.0,118040.0,1.06849604]
[1753839683922,0.37409574,118050.0,118040.0,0.83558699]
[1753839684141,0.37409574,118050.0,118040.0,1.06849604]
[1753839689968,0.37409574,118050.0,118040.0,0.83558699]
[1753839690194,0.37409574,118050.0,118040.0,1.06849604]
[1753839691257,0.37409574,118050.0,118040.0,0.83558699]
[1753839691518,0.37409574,118050.0,118040.0,1.06849604]
[1753839694357,0.37409574,118050.0,118040.0,0.83558699]
[1753839694564,0.37409574,118050.0,118040.0,1.06849604]
[1753839695201,0.37409574,118050.0,118040.0,0.83558699]
[1753839695409,0.37409574,118050.0,118040.0,1.06849604]
[1753839697609,0.33889846,118050.0,118040.0,1.06849604]
[1753839705986,0.33889846,118050.0,118040.0,1.30140509]
[1753839713210,0.33889846,118050.0,118040.0,0.83558699]
[1753839713422,0.33889846,118050.0,118040.0,1.30140509]
[1753839715803,0.33889846,118050.0,118040.0,1.53431414]
[1753839716233,0.33889846,118050.0,118040.0,1.30140509]
[1753839716463,0.33889846,118050.0,118040.0,1.30040509]
[1753839716918,0.33889846,118050.0,118040.0,1.56423486]
[1753839717171,4.846e-05,118050.0,118040.0,1.72519725]
[1753839717387,4.846e-05,118050.0,118040.0,1.73366895]
[1753839718037,4.846e-05,118050.0,118040.0,1.72519725]
[1753839718273,4.846e-05,118050.0,118040.0,1.55576316]
[1753839718488,4.846e-05,118050.0,118040.0,0.85703601]
[1753839718704,4.846e-05,118050.0,118040.0,1.55576316]
[1753839720007,4.846e-05,118050.0,118040.0,1.32285411]
[1753839721999,4.846e-05,118050.0,118040.0,1.55576316]
[1753839722464,4.846e-05,118050.0,118040.0,1.56423486]
[1753839722924,4.846e-05,118050.0,118040.0,1.67265229]
[1753839723130,4.846e-05,118050.0,118040.0,1.67265222]
[1753839723349,4.846e-05,118050.0,118040.0,1.6811237]
[1753839723609,4.846e-05,118050.0,118040.0,1.67265237]
[1753839723829,4.846e-05,118050.0,118040.0,1.66418081]
[1753839724044,4.846e-05,118050.0,118040.0,1.66169491]
[1753839724263,4.846e-05,118050.0,118040.0,1.65570918]
[1753839724479,4.846e-05,118050.0,118040.0,1.66418081]
[1753839724881,4.846e-05,118050.0,118040.0,1.67265237]
[1753839725431,4.846e-05,118050.0,118040.0,1.68112378]
[1753839725865,4.846e-05,118050.0,118040.0,1.68112342]
[1753839727162,4.846e-05,118050.0,118040.0,1.94372342]
[1753839727375,4.846e-05,118050.0,118040.0,1.93525208]
[1753839727583,4.846e-05,118050.0,118040.0,1.94372342]
[1753839727803,4.846e-05,118050.0,118040.0,1.95219469]
[1753839728019,4.846e-05,118050.0,118040.0,1.92678067]
[1753839728443,4.846e-05,118050.0,118040.0,1.91830911]
[1753839728887,4.846e-05,118050.0,118040.0,1.74040339]
[1753839729317,4.846e-05,118050.0,118040.0,1.75734672]
[1753839729751,4.846e-05,118050.0,118040.0,1.76581828]
[1753839729931,4.846e-05,118050.0,118040.0,1.12562174]
[1753839730154,4.846e-05,118050.0,118040.0,1.74040339]
[1753839730361,4.846e-05,118050.0,118040.0,1.74887509]
[1753839730589,4.846e-05,118050.0,118040.0,1.75734672]
[1753839730792,4.846e-05,118050.0,118040.0,1.76581828]
[1753839731015,4.846e-05,118050.0,118040.0,1.92678081]
[1753839731216,4.846e-05,118050.0,118040.0,1.93525237]
[1753839731734,4.846e-05,118050.0,118040.0,1.92678081]
[1753839732611,4.846e-05,118050.0,118040.0,1.93525237]
[1753839733673,4.846e-05,118050.0,118040.0,1.92678081]
[1753839733856,4.846e-05,118050.0,118040.0,1.93525237]
[1753839734064,4.846e-05,118050.0,118040.0,1.11963601]
[1753839734282,4.846e-05,118050.0,118040.0,1.74887502]
[1753839734504,4.846e-05,118050.0,118040.0,1.91830911]
[1753839734733,4.846e-05,118050.0,118040.0,1.93525215]
[1753839734954,4.846e-05,118050.0,118040.0,1.94372356]
[1753839735169,4.846e-05,118050.0,118040.0,1.93525215]
[1753839735402,4.846e-05,118050.0,118040.0,1.94372356]
[1753839736078,4.846e-05,118050.0,118040.0,1.93525215]
[1753839736497,4.846e-05,118050.0,118040.0,1.92678067]
[1753839736738,4.846e-05,118050.0,118040.0,1.91830911]
[1753839736946,4.846e-05,118050.0,118040.0,1.92678067]
[1753839737163,4.846e-05,118050.0,118040.0,1.91830918]
[1753839737407,4.846e-05,118050.0,118040.0,1.74040339]
[1753839738278,4.846e-05,118050.0,118040.0,1.74887509]
[1753839738487,4.846e-05,118050.0,118040.0,1.75486082]
[1753839738727,4.846e-05,118050.0,118040.0,1.74040339]
[1753839739933,4.846e-05,118050.0,118040.0,1.90983748]
[1753839741324,4.846e-05,118050.0,118040.0,1.91830918]
[1753839741746,4.846e-05,118050.0,118040.0,1.92678074]
[1753839741952,4.846e-05,118050.0,118040.0,1.93525222]
[1753839742432,4.846e-05,118050.0,118040.0,1.94372363]
[1753839742651,4.846e-05,118050.0,118040.0,1.93525222]
[1753839742862,4.846e-05,118050.0,118040.0,2.02971701]
[1753839743081,4.846e-05,118050.0,118040.0,2.02126581]
[1753839743299,4.846e-05,118050.0,118040.0,2.02973708]
[1753839743497,4.846e-05,118050.0,118040.0,2.02126581]
[1753839743747,4.846e-05,118050.0,118040.0,2.01626581]
[1753839743947,4.846e-05,118050.0,118040.0,2.36473708]
[1753839744162,4.846e-05,118050.0,118040.0,2.34632299]
[1753839744585,4.846e-05,118050.0,118040.0,2.36326588]
[1753839745112,4.846e-05,118050.0,118040.0,2.37173672]
[1753839745529,4.846e-05,118050.0,118040.0,2.36665952]
[1753839745730,4.846e-05,118050.0,118040.0,2.37513079]
[1753839746619,4.846e-05,118050.0,118040.0,2.34971677]
[1753839746832,4.846e-05,118050.0,118040.0,2.35818818]
[1753839747257,4.846e-05,118050.0,118040.0,2.37513079]
[1753839747467,4.846e-05,118050.0,118040.0,2.36665952]
[1753839747688,4.846e-05,118050.0,118040.0,2.35818818]
[1753839747884,4.846e-05,118050.0,118040.0,2.36665952]
[1753839748681,4.846e-05,118050.0,118040.0,2.34124529]
[1753839748844,4.846e-05,118050.0,118040.0,2.34124536]
[1753839749042,4.846e-05,118050.0,118040.0,1.96981052]
[1753839749253,4.846e-05,118050.0,118040.0,2.09965052]
[1753839749491,4.846e-05,118050.0,118040.0,2.10812222]
[1753839749916,4.846e-05,118050.0,118040.0,2.11659385]
[1753839750118,4.846e-05,118050.0,118040.0,2.12506541]
[1753839750376,4.846e-05,118050.0,118040.0,2.34935706]
[1753839750657,4.846e-05,118050.0,118040.0,2.35782862]
[1753839751039,4.846e-05,118050.0,118040.0,2.34088543]
[1753839751443,4.846e-05,118050.0,118040.0,2.33749143]
[1753839752287,4.846e-05,118050.0,118040.0,2.34596306]
[1753839752533,4.846e-05,118050.0,118040.0,1.5008901]
[1753839752727,4.846e-05,118050.0,118040.0,1.92682243]
[1753839752945,4.846e-05,118050.0,118040.0,2.32901973]
[1753839753154,4.846e-05,118050.0,118040.0,2.33749136]
[1753839753609,4.846e-05,118050.0,118040.0,2.10472822]
[1753839753849,4.846e-05,118050.0,118040.0,2.09625652]
[1753839754277,4.846e-05,118050.0,118040.0,2.10472822]
[1753839754489,4.846e-05,118050.0,118040.0,2.12167126]
[1753839754695,4.846e-05,118050.0,118040.0,2.34596299]
[1753839754924,4.846e-05,118050.0,118040.0,2.11319985]
[1753839755365,4.846e-05,118050.0,118040.0,2.10472822]
[1753839755779,4.846e-05,118050.0,118040.0,2.09625652]
[1753839757919,4.846e-05,118050.0,118040.0,2.11319985]
[1753839758146,0.00036846,118050.0,118040.0,1.27020601]
[1753839758356,0.00036846,118050.0,118040.0,1.02871739]
[1753839758575,0.00036846,118050.0,118040.0,1.2753602]
[1753839759231,0.00036846,118050.0,118040.0,1.1455202]
[1753839759436,0.00036846,118050.0,118040.0,1.2753602]
[1753839759644,0.00036846,118050.0,118040.0,1.1455202]
[1753839759847,0.00036846,118050.0,118040.0,1.2753602]
[1753839760045,0.00036846,118050.0,118040.0,1.3303702]
[1753839760398,0.00036846,118050.0,118040.0,1.56313341]
[1753839760600,0.00036846,118050.0,118040.0,1.3303702]
[1753839760825,0.00036846,118050.0,118040.0,1.40810236]
[1753839761554,0.00036846,118050.0,118040.0,1.07409699]
[1753839761721,0.00036846,118050.0,118040.0,1.35309236]
[1753839761921,0.00056846,118050.0,118040.0,0.91275699]
[1753839762126,0.00056846,118050.0,118040.0,1.02871739]
[1753839762328,0.00056846,118050.0,118040.0,1.04259699]
[1753839762524,0.00056846,118050.0,118040.0,0.77999699]
[1753839763989,0.00036846,118050.0,118040.0,0.77999699]
[1753839764736,0.00036846,118050.0,118040.0,1.09049236]
[1753839764977,0.00036846,118050.0,118040.0,1.11400236]
[1753839765188,4.846e-05,118050.0,118040.0,1.14920236]
[1753839765409,4.846e-05,118050.0,118040.0,1.45969773]
[1753839765626,4.846e-05,118050.0,118040.0,1.47714675]
[1753839765841,4.846e-05,118050.0,118040.0,1.16665138]
[1753839766052,4.846e-05,118050.0,118040.0,1.47714675]
[1753839766862,4.846e-05,118050.0,118040.0,1.16665138]
[1753839776935,4.846e-05,118050.0,118040.0,1.47714675]
[1753839777383,0.0002,118060.0,118050.0,0.34149537]
[1753839777565,0.0002,118060.0,118050.0,0.59752227]
[1753839778770,0.00052,118060.0,118050.0,0.59442227]
[1753839778981,0.00052,118060.0,118050.0,0.59642227]
[1753839779185,0.00052,118060.0,118050.0,0.59942227]
[1753839779594,0.00052,118060.0,118050.0,0.46962227]
[1753839779842,0.00052,118060.0,118050.0,0.44385227]
[1753839780165,0.00052,118060.0,118050.0,0.57365227]
[1753839780406,0.00052,118060.0,118050.0,0.59642227]
[1753839780610,0.00052,118060.0,118050.0,0.59942227]
[1753839781418,0.00052,118060.0,118050.0,0.1591269]
[1753839781619,0.00052,118060.0,118050.0,0.2549269]
[1753839781842,0.00052,118060.0,118050.0,0.2321569]
[1753839782452,0.00052,118060.0,118050.0,0.14725695]
[1753839782655,0.00052,118060.0,118050.0,0.27705695]
[1753839784069,0.00052,118060.0,118050.0,0.31632695]
[1753839784285,0.00052,118060.0,118050.0,0.31932695]
[1753839784884,0.00052,118060.0,118050.0,0.33592695]
[1753839788393,0.00052,118060.0,118050.0,0.31932695]
[1753839789126,0.00052,118060.0,118050.0,0.33432695]
[1753839789643,0.00052,118060.0,118050.0,0.30282695]
[1753839789887,0.00052,118060.0,118050.0,0.29982695]
[1753839790985,0.00052,118060.0,118050.0,0.30282695]
[1753839791613,0.00052,118060.0,118050.0,0.2579269]
[1753839791850,0.00052,118060.0,118050.0,0.30282695]
[1753839792507,0.00052,118060.0,118050.0,0.2579269]
[1753839792714,0.00052,118060.0,118050.0,0.30282695]
[1753839793785,0.00052,118060.0,118050.0,0.17302695]
[1753839793968,0.00052,118060.0,118050.0,0.14725695]
[1753839794199,0.00052,118060.0,118050.0,0.27705695]
[1753839794386,0.00052,118060.0,118050.0,0.29982695]
[1753839795893,0.00052,118060.0,118050.0,0.28594735]
[1753839796739,0.00052,118060.0,118050.0,0.29982695]
[1753839797160,0.00052,118060.0,118050.0,0.28894735]
[1753839797599,0.00052,118060.0,118050.0,0.28594735]
[1753839798020,0.00052,118060.0,118050.0,0.26317735]
[1753839798917,0.00052,118060.0,118050.0,0.28669735]
[1753839799387,0.31101537,118060.0,118050.0,0.14725695]
[1753839799626,0.00052,118060.0,118050.0,0.26317735]
[1753839799840,0.31101537,118060.0,118050.0,0.27705695]
[1753839800055,0.00052,118060.0,118050.0,0.30057695]
[1753839800898,0.00052,118060.0,118050.0,0.28669735]
[1753839801161,0.00052,118060.0,118050.0,0.30057695]
[1753839801866,0.00052,118060.0,118050.0,0.28669735]
[1753839803261,0.00052,118060.0,118050.0,0.30057695]
[1753839804134,0.00052,118060.0,118050.0,0.30351695]
[1753839805366,0.00052,118060.0,118050.0,0.30555695]
[1753839806867,0.0002,118060.0,118050.0,0.30555695]
[1753839807117,0.0002,118060.0,118050.0,0.32115695]
[1753839807327,0.0002,118060.0,118050.0,0.64825232]
[1753839807974,0.0002,118060.0,118050.0,0.33775695]
[1753839813310,0.31101537,118060.0,118050.0,0.32183735]
[1753839813570,0.31101537,118060.0,118050.0,0.28963735]
[1753839813990,0.31101537,118060.0,118050.0,0.30351695]
[1753839814920,0.31101537,118060.0,118050.0,0.28963735]
[1753839815149,0.31101537,118060.0,118050.0,0.30351695]
[1753839815606,0.00052,118060.0,118050.0,0.30351695]
[1753839815812,0.31101537,118060.0,118050.0,0.28963735]
[1753839816691,0.31101537,118060.0,118050.0,0.30351695]
[1753839817545,0.31101537,118060.0,118050.0,0.15689735]
[1753839817757,0.31101537,118060.0,118050.0,0.28665735]
[1753839818599,0.31101537,118060.0,118050.0,0.28465735]
[1753839818886,0.31101537,118060.0,118050.0,0.28565735]
[1753839819302,0.31101537,118060.0,118050.0,0.28365735]
[1753839820688,0.34637157,118060.0,118050.0,0.16777695]
[1753839820908,0.31948499,118060.0,118050.0,0.26113735]
[1753839821323,0.31948499,118060.0,118050.0,0.28465735]
[1753839821958,0.31948499,118060.0,118050.0,0.29853695]
[1753839822178,0.65948499,118060.0,118050.0,0.27501695]
[1753839822392,0.71095403,118060.0,118050.0,0.27501695]
[1753839823007,0.71942415,118060.0,118050.0,0.27501695]
[1753839823209,0.71095403,118060.0,118050.0,0.27501695]
[1753839823426,0.67642473,118060.0,118050.0,0.27501695]
[1753839824040,0.68489485,118060.0,118050.0,0.2291169]
[1753839824255,0.67642473,118060.0,118050.0,0.2281169]
[1753839824461,0.67642458,118060.0,118050.0,0.27301695]
[1753839824664,0.74225709,118060.0,118050.0,0.27301695]
[1753839824896,0.4402317,118060.0,118050.0,0.27301695]
[1753839825073,0.67642458,118060.0,118050.0,0.27301695]
[1753839825281,0.69336461,118060.0,118050.0,0.2281169]
[1753839825690,0.69336454,118060.0,118050.0,0.2281169]
[1753839825905,0.68489449,118060.0,118050.0,0.2281169]
[1753839826313,0.67642458,118060.0,118050.0,0.2281169]
[1753839826751,0.68489456,118060.0,118050.0,0.2281169]
[1753839826932,0.67642458,118060.0,118050.0,0.2281169]
[1753839827147,0.68489456,118060.0,118050.0,0.2281169]
[1753839827352,0.68489449,118060.0,118050.0,0.2281169]
[1753839828057,0.69336447,118060.0,118050.0,0.2281169]
[1753839828621,0.68489449,118060.0,118050.0,0.2281169]
[1753839828864,0.36592921,118060.0,118050.0,0.2281169]
[1753839829060,0.66795475,118060.0,118050.0,0.2516869]
[1753839829760,0.65948499,118060.0,118050.0,0.2516869]
[1753839829994,0.35745931,118060.0,118050.0,0.2546769]
[1753839830166,0.65948499,118060.0,118050.0,0.2546769]
[1753839830379,0.65069537,118060.0,118050.0,0.2889369]
[1753839831644,0.3402,118060.0,118050.0,0.33383695]
[1753839836192,0.4002,118060.0,118050.0,0.33383695]
[1753839842809,0.63309673,118060.0,118050.0,0.33383695]
[1753839846794,0.4002,118060.0,118050.0,0.33982268]
[1753839847046,0.4002,118060.0,118050.0,0.33383695]
[1753839852445,0.63309673,118060.0,118050.0,0.33383695]
[1753839863953,0.4002,118060.0,118050.0,0.33383695]
[1753839869280,0.63309673,118060.0,118050.0,0.33383695]
[1753839869722,0.4002,118060.0,118050.0,0.33383695]
[1753839876495,0.4002,118060.0,118050.0,0.56673368]
[1753839878526,0.4002,118060.0,118050.0,0.33383695]
[1753839878726,0.4002,118060.0,118050.0,0.56673368]
[1753839880511,0.4002,118060.0,118050.0,0.33383695]
[1753839882026,0.4002,118060.0,118050.0,0.56673368]
[1753839882211,0.4002,118060.0,118050.0,0.33383695]
[1753839886450,0.4002,118060.0,118050.0,0.56673368]
[1753839887292,0.4002,118060.0,118050.0,0.33383695]
[1753839888106,0.4002,118060.0,118050.0,0.56673368]
[1753839888892,0.4002,118060.0,118050.0,0.33383695]
[1753839889102,0.4002,118060.0,118050.0,0.56673368]
[1753839889921,0.4002,118060.0,118050.0,0.33383695]
[1753839890132,0.4002,118060.0,118050.0,0.56673368]
[1753839893994,0.4002,118060.0,118050.0,0.33383695]
[1753839894217,0.4002,118060.0,118050.0,0.56673368]
[1753839897271,0.4002,118060.0,118050.0,0.56681268]
[1753839898904,0.0602,118060.0,118050.0,0.56681268]
[1753839899123,0.0602,118060.0,118050.0,0.79970941]
[1753839900201,0.0602,118060.0,118050.0,0.80170941]
[1753839902136,0.0602,118060.0,118050.0,0.80070941]
[1753839902754,0.0602,118060.0,118050.0,0.80270941]
[1753839903231,0.0602,118060.0,118050.0,0.80170941]
[1753839903465,0.0602,118060.0,118050.0,0.80370941]
[1753839929951,0.0602,118060.0,118050.0,0.79970941]
[1753839930200,0.0602,118060.0,118050.0,0.81715843]
[1753839930437,0.0602,118060.0,118050.0,0.82215843]
[1753839944067,0.0602,118060.0,118050.0,0.99157816]
[1753839945232,0.0602,118060.0,118050.0,0.5257847]
[1753839945483,0.0602,118060.0,118050.0,0.99157816]
[1753839946607,0.0602,118060.0,118050.0,1.00004914]
[1753839946817,0.0602,118060.0,118050.0,0.99157816]
[1753839949090,0.0602,118060.0,118050.0,0.82215843]
[1753839956418,0.0602,118060.0,118050.0,0.35636497]
[1753839956632,0.0602,118060.0,118050.0,0.82215843]
[1753839957028,0.0602,118060.0,118050.0,1.00004914]